[Event "GrandPrix_29.05"]
[Site "Chess.com"]
[Date "2020.05.29"]
[Round "2"]
[White "Dedic8"]
[Black "bsnsun"]
[Result "0-1"]
[WhiteElo "1953"]
[BlackElo "2181"]
[TimeControl "600+2"]
[EndTime "9:58:47 PDT"]
[Termination "bsnsun won by resignation"]

1. e4 {[%clk 0:09:58]} 1... c5 {[%clk 0:10:00.6]} 2. Nf3 {[%clk 0:09:56.2]} 2...
d6 {[%clk 0:09:58.2]} 3. d4 {[%clk 0:09:56.9]} 3... cxd4 {[%clk 0:09:57.3]} 4.
Nxd4 {[%clk 0:09:58.8]} 4... Nf6 {[%clk 0:09:58.6]} 5. Nc3 {[%clk 0:09:59.4]}
5... a6 {[%clk 0:09:59.4]} 6. h3 {[%clk 0:10:00.9]} 6... e6 {[%clk 0:09:46.7]}
7. g4 {[%clk 0:10:01.3]} 7... h6 {[%clk 0:09:44.3]} 8. Bg2 {[%clk 0:09:51.7]}
8... g5 {[%clk 0:09:39]} 9. b3 {[%clk 0:09:47.3]} 9... Nbd7 {[%clk 0:09:36.3]}
10. Bb2 {[%clk 0:09:39.3]} 10... Ne5 {[%clk 0:09:34.6]} 11. Qd2 {[%clk
0:09:38.7]} 11... Be7 {[%clk 0:09:18.2]} 12. O-O-O {[%clk 0:09:38.8]} 12... Qc7
{[%clk 0:09:15.8]} 13. Kb1 {[%clk 0:09:39.3]} 13... b5 {[%clk 0:08:57.9]} 14. f4
{[%clk 0:09:39.1]} 14... gxf4 {[%clk 0:08:57.2]} 15. Qxf4 {[%clk 0:09:41]} 15...
Bb7 {[%clk 0:08:54.3]} 16. Rhf1 {[%clk 0:09:41.3]} 16... Nfd7 {[%clk 0:08:27.2]}
17. Nce2 {[%clk 0:08:26.9]} 17... Rc8 {[%clk 0:08:22.8]} 18. Qg3 {[%clk
0:08:12.9]} 18... Nc5 {[%clk 0:07:27.5]} 19. Nf4 {[%clk 0:07:39.4]} 19... Bxe4
{[%clk 0:07:11.9]} 20. Nfxe6 {[%clk 0:06:37.1]} 20... fxe6 {[%clk 0:06:59.9]}
21. Nxe6 {[%clk 0:06:36.4]} 21... Bxc2+ {[%clk 0:06:46.5]} 22. Kxc2 {[%clk
0:06:23.8]} 22... Nxe6+ {[%clk 0:06:28]} 23. Kb1 {[%clk 0:06:24.9]} 23... Rf8
{[%clk 0:05:03.2]} 24. Be4 {[%clk 0:06:15.9]} 24... Rxf1 {[%clk 0:04:28.9]} 25.
Rxf1 {[%clk 0:06:17.8]} 25... Nc5 {[%clk 0:02:53.2]} 26. Bf5 {[%clk 0:06:16.8]}
26... Rd8 {[%clk 0:02:37.9]} 27. h4 {[%clk 0:06:11.8]} 27... Bf8 {[%clk
0:01:36.6]} 28. g5 {[%clk 0:06:03.3]} 28... hxg5 {[%clk 0:01:37.5]} 29. Qxg5
{[%clk 0:05:35.3]} 29... Qg7 {[%clk 0:01:37.8]} 30. Qh5+ {[%clk 0:04:21.9]}
30... Ke7 {[%clk 0:01:16.2]} 31. Bc1 {[%clk 0:03:34]} 31... Ne6 {[%clk
0:00:24.9]} 32. Qe2 {[%clk 0:03:02.8]} 32... Rc8 {[%clk 0:00:23.5]} 33. Qe4
{[%clk 0:02:29.3]} 33... Rc7 {[%clk 0:00:21.3]} 34. Qd5 {[%clk 0:01:25]} 34...
Qf6 {[%clk 0:00:22]} 35. Bh3 {[%clk 0:00:56.4]} 35... Qg6+ {[%clk 0:00:23.1]}
36. Bf5 {[%clk 0:00:57.7]} 36... Qf6 {[%clk 0:00:21.9]} 37. Qxe6+ {[%clk
0:00:20.7]} 37... Qxe6 {[%clk 0:00:22.9]} 38. Bxe6 {[%clk 0:00:22.6]} 38... Kxe6
{[%clk 0:00:24]} 39. Rxf8 {[%clk 0:00:23.7]} 39... Rh7 {[%clk 0:00:20.4]} 40.
Bg5 {[%clk 0:00:21.1]} 40... Nf7 {[%clk 0:00:18.4]} 41. Re8+ {[%clk 0:00:16.9]}
41... Kd5 {[%clk 0:00:19.4]} 42. Rg8 {[%clk 0:00:06.4]} 42... b4 {[%clk
0:00:15.2]} 43. Kc2 {[%clk 0:00:05.8]} 43... Ne5 {[%clk 0:00:15.9]} 44. Ra8
{[%clk 0:00:05]} 44... Rc7+ {[%clk 0:00:16.6]} 45. Kd2 {[%clk 0:00:05.9]} 45...
Nf3+ {[%clk 0:00:16.1]} 46. Ke3 {[%clk 0:00:07.4]} 46... Ne5 {[%clk 0:00:11.7]}
47. Rxa6 {[%clk 0:00:08.2]} 47... Rc3+ {[%clk 0:00:12.3]} 48. Ke2 {[%clk
0:00:06.6]} 48... Rc2+ {[%clk 0:00:13.3]} 49. Kd1 {[%clk 0:00:06.8]} 49... Rg2
{[%clk 0:00:11.2]} 50. Rb6 {[%clk 0:00:07.7]} 50... Nd3 {[%clk 0:00:10.5]} 51.
Rb5+ {[%clk 0:00:04.4]} 51... Ke4 {[%clk 0:00:11.4]} 52. Rb6 {[%clk 0:00:04.2]}
52... Rg1+ {[%clk 0:00:12.4]} 53. Ke2 {[%clk 0:00:04.8]} 53... Rg2+ {[%clk
0:00:13.6]} 54. Kf1 {[%clk 0:00:05.4]} 54... Rxa2 {[%clk 0:00:14.5]} 55. h5
{[%clk 0:00:06.8]} 55... Rh2 {[%clk 0:00:11.2]} 56. h6 {[%clk 0:00:07.3]} 56...
Kf3 {[%clk 0:00:08.2]} 57. Kg1 {[%clk 0:00:08.7]} 57... Rg2+ {[%clk 0:00:09]}
58. Kf1 {[%clk 0:00:09.5]} 58... Rxg5 {[%clk 0:00:09.8]} 59. Rxd6 {[%clk
0:00:10.9]} 59... Nf4 {[%clk 0:00:10.5]} 60. Rd4 {[%clk 0:00:09.1]} 60... Rh5
{[%clk 0:00:10.1]} 61. Ke1 {[%clk 0:00:10.4]} 61... Rxh6 {[%clk 0:00:10.2]} 62.
Kd2 {[%clk 0:00:11.5]} 62... Rh2+ {[%clk 0:00:09.7]} 63. Kd1 {[%clk 0:00:12.8]}
63... Ke3 {[%clk 0:00:07.1]} 64. Rxb4 {[%clk 0:00:13.7]} 64... Nd3 {[%clk
0:00:08.3]} 0-1

[Event "GrandPrix_29.05"]
[Site "Chess.com"]
[Date "2020.05.29"]
[Round "2"]
[White "XeresLt"]
[Black "temus_galaktionov"]
[Result "0-1"]
[WhiteElo "1736"]
[BlackElo "2166"]
[TimeControl "600+2"]
[EndTime "9:58:47 PDT"]
[Termination "temus_galaktionov won by resignation"]

1. e4 {[%clk 0:10:01.9]} 1... c6 {[%clk 0:10:01.9]} 2. d4 {[%clk 0:10:00]} 2...
g6 {[%clk 0:09:53.6]} 3. Nf3 {[%clk 0:09:45.8]} 3... Bg7 {[%clk 0:09:53.9]} 4.
Bd3 {[%clk 0:09:35]} 4... d6 {[%clk 0:09:54.8]} 5. O-O {[%clk 0:09:33.8]} 5...
Nd7 {[%clk 0:09:56]} 6. a4 {[%clk 0:09:31.2]} 6... e5 {[%clk 0:09:56.9]} 7. c3
{[%clk 0:09:26.1]} 7... Ngf6 {[%clk 0:09:53.5]} 8. Nbd2 {[%clk 0:09:22.2]} 8...
O-O {[%clk 0:09:53.2]} 9. b3 {[%clk 0:09:16.3]} 9... Re8 {[%clk 0:09:51.3]} 10.
Bb2 {[%clk 0:09:07]} 10... Qc7 {[%clk 0:09:48.8]} 11. Re1 {[%clk 0:09:07.1]}
11... b6 {[%clk 0:09:45.4]} 12. Nf1 {[%clk 0:08:54.3]} 12... Nh5 {[%clk
0:09:22.9]} 13. Rc1 {[%clk 0:08:20]} 13... Nf4 {[%clk 0:09:22.4]} 14. Bb1 {[%clk
0:08:20.8]} 14... Ba6 {[%clk 0:09:14.7]} 15. c4 {[%clk 0:08:17.4]} 15... Bb7
{[%clk 0:09:05.7]} 16. Ne3 {[%clk 0:07:48.2]} 16... a6 {[%clk 0:08:56.5]} 17. b4
{[%clk 0:07:32.2]} 17... exd4 {[%clk 0:08:42.4]} 18. Bxd4 {[%clk 0:07:31.1]}
18... Bxd4 {[%clk 0:08:41.9]} 19. Qxd4 {[%clk 0:07:07]} 19... c5 {[%clk
0:08:41.7]} 20. bxc5 {[%clk 0:06:33.2]} 20... Nxc5 {[%clk 0:07:41.2]} 21. Ng4
{[%clk 0:06:29.2]} 21... Re6 {[%clk 0:05:14.7]} 22. Nh6+ {[%clk 0:04:56.1]}
22... Kf8 {[%clk 0:05:13.5]} 23. Qh8+ {[%clk 0:04:33.2]} 23... Ke7 {[%clk
0:05:13.8]} 24. Qxh7 {[%clk 0:04:05.5]} 24... Rf8 {[%clk 0:05:13]} 25. Nd4
{[%clk 0:03:47]} 25... Re5 {[%clk 0:04:59.3]} 26. Ng8+ {[%clk 0:03:31.7]} 26...
Kd7 {[%clk 0:04:10.6]} 27. g3 {[%clk 0:03:19.3]} 27... Nfd3 {[%clk 0:04:05.2]}
28. f4 {[%clk 0:03:05.2]} 28... Nxc1 {[%clk 0:03:27.8]} 29. fxe5 {[%clk
0:03:03.8]} 29... dxe5 {[%clk 0:03:20.7]} 30. Qg7 {[%clk 0:02:42.6]} 30... Qd6
{[%clk 0:03:19.4]} 31. Nf3 {[%clk 0:02:05.6]} 31... N1b3 {[%clk 0:01:54.3]} 32.
Nxe5+ {[%clk 0:01:46.5]} 32... Kc7 {[%clk 0:01:54.5]} 33. Nf6 {[%clk 0:01:19.1]}
33... Ne6 {[%clk 0:01:48.5]} 34. Qh6 {[%clk 0:01:05.3]} 34... Qxe5 {[%clk
0:01:47.5]} 35. Nd5+ {[%clk 0:01:04.5]} 35... Kb8 {[%clk 0:01:45.2]} 36. Qe3
{[%clk 0:01:05.3]} 36... Qd4 {[%clk 0:01:37.4]} 37. Nxb6 {[%clk 0:01:05.1]}
37... Nbc5 {[%clk 0:01:36.1]} 38. Qxd4 {[%clk 0:00:58.7]} 38... Nxd4 {[%clk
0:01:38]} 39. Rd1 {[%clk 0:00:59.9]} 39... Rd8 {[%clk 0:01:26.9]} 40. Nd5 {[%clk
0:01:00.2]} 40... Nf3+ {[%clk 0:01:22.9]} 41. Kf2 {[%clk 0:01:00.2]} 41... Ne5
{[%clk 0:01:24.5]} 42. Ke3 {[%clk 0:00:39.1]} 42... Nxa4 {[%clk 0:01:23.2]} 43.
Kd4 {[%clk 0:00:28.2]} 43... Nc6+ {[%clk 0:01:23.8]} 44. Ke3 {[%clk 0:00:29.1]}
44... Ne5 {[%clk 0:01:00.5]} 45. Kd4 {[%clk 0:00:29.9]} 45... Nxc4 {[%clk
0:01:01]} 46. Bc2 {[%clk 0:00:26.6]} 46... Nab2 {[%clk 0:01:00.4]} 47. Rb1
{[%clk 0:00:27.5]} 47... Bc6 {[%clk 0:00:49.4]} 48. Bd3 {[%clk 0:00:24.5]} 48...
Bb5 {[%clk 0:00:50.5]} 49. Bxc4 {[%clk 0:00:15.5]} 49... Nxc4 {[%clk 0:00:52.4]}
50. Kc5 {[%clk 0:00:11.5]} 50... Rc8+ {[%clk 0:00:50.3]} 51. Kd4 {[%clk
0:00:12.9]} 51... Ka7 {[%clk 0:00:51.1]} 52. Rf1 {[%clk 0:00:12.7]} 52... Nd6
{[%clk 0:00:50]} 53. Rf6 {[%clk 0:00:13.5]} 53... Rc6 {[%clk 0:00:49.1]} 54. e5
{[%clk 0:00:10.6]} 54... Nf5+ {[%clk 0:00:49.4]} 55. Ke4 {[%clk 0:00:10.1]}
55... Rxf6 {[%clk 0:00:50.3]} 56. Nxf6 {[%clk 0:00:11]} 56... Bc6+ {[%clk
0:00:50.4]} 57. Kf4 {[%clk 0:00:11.6]} 57... Nd4 {[%clk 0:00:49.8]} 58. Ng4
{[%clk 0:00:06.4]} 58... Ne6+ {[%clk 0:00:49.6]} 59. Ke3 {[%clk 0:00:07]} 59...
Kb6 {[%clk 0:00:47.7]} 60. Nh6 {[%clk 0:00:07.9]} 60... Nd8 {[%clk 0:00:49]} 61.
g4 {[%clk 0:00:07.8]} 61... a5 {[%clk 0:00:50.2]} 62. h4 {[%clk 0:00:09.2]}
62... a4 {[%clk 0:00:51.6]} 63. Kd4 {[%clk 0:00:10.6]} 63... Bd7 {[%clk
0:00:48.9]} 64. h5 {[%clk 0:00:07.9]} 64... Nc6+ {[%clk 0:00:45.5]} 65. Kc3
{[%clk 0:00:02.9]} 65... Nxe5 {[%clk 0:00:45.8]} 66. Nxf7 {[%clk 0:00:02.9]}
66... Nxf7 {[%clk 0:00:44.2]} 67. hxg6 {[%clk 0:00:04.4]} 67... Nh6 {[%clk
0:00:45]} 68. g5 {[%clk 0:00:04.8]} 68... Ng8 {[%clk 0:00:46.9]} 69. Kb4 {[%clk
0:00:05.6]} 69... Ka6 {[%clk 0:00:47.1]} 70. g7 {[%clk 0:00:06.8]} 70... Kb6
{[%clk 0:00:47.6]} 71. Ka3 {[%clk 0:00:07.8]} 71... Kb5 {[%clk 0:00:48.7]} 72.
Kb2 {[%clk 0:00:09]} 72... Kb4 {[%clk 0:00:48.5]} 73. Ka1 {[%clk 0:00:10.4]}
73... Be6 {[%clk 0:00:49.5]} 74. Kb1 {[%clk 0:00:11.9]} 74... Ne7 {[%clk
0:00:50.2]} 75. Ka1 {[%clk 0:00:13.6]} 75... Nf5 {[%clk 0:00:50.6]} 76. Kb1
{[%clk 0:00:15]} 76... Nxg7 {[%clk 0:00:51.5]} 0-1

[Event "GrandPrix_29.05"]
[Site "Chess.com"]
[Date "2020.05.29"]
[Round "2"]
[White "RussianChessFighter"]
[Black "Winawer81"]
[Result "1-0"]
[WhiteElo "2130"]
[BlackElo "2078"]
[TimeControl "600+2"]
[EndTime "9:58:48 PDT"]
[Termination "RussianChessFighter won by resignation"]

1. c4 {[%clk 0:10:00]} 1... e5 {[%clk 0:09:58.6]} 2. Nc3 {[%clk 0:10:00.6]} 2...
Nf6 {[%clk 0:09:58.3]} 3. g3 {[%clk 0:09:59.9]} 3... Nc6 {[%clk 0:09:48.8]} 4.
Bg2 {[%clk 0:09:57]} 4... Bc5 {[%clk 0:09:48.4]} 5. Nf3 {[%clk 0:09:55.1]} 5...
d6 {[%clk 0:09:47.8]} 6. O-O {[%clk 0:09:55.3]} 6... a6 {[%clk 0:09:46.6]} 7. d3
{[%clk 0:09:32.3]} 7... h6 {[%clk 0:09:42.9]} 8. a3 {[%clk 0:09:24.3]} 8... Ba7
{[%clk 0:09:37.6]} 9. b4 {[%clk 0:09:00.5]} 9... Ne7 {[%clk 0:09:35.9]} 10. Bb2
{[%clk 0:09:00.1]} 10... O-O {[%clk 0:09:34.7]} 11. e3 {[%clk 0:08:59.4]} 11...
Ng6 {[%clk 0:09:26.9]} 12. d4 {[%clk 0:08:54.4]} 12... exd4 {[%clk 0:08:50.2]}
13. exd4 {[%clk 0:08:43.8]} 13... Be6 {[%clk 0:08:36.2]} 14. c5 {[%clk
0:08:32.8]} 14... d5 {[%clk 0:08:11.7]} 15. Re1 {[%clk 0:08:27]} 15... c6 {[%clk
0:08:08.5]} 16. a4 {[%clk 0:08:24]} 16... Qd7 {[%clk 0:07:55.5]} 17. Qd2 {[%clk
0:08:18.4]} 17... Rfe8 {[%clk 0:07:41.9]} 18. Ne5 {[%clk 0:08:18.6]} 18... Nxe5
{[%clk 0:07:41.2]} 19. dxe5 {[%clk 0:08:20.5]} 19... Nh7 {[%clk 0:07:35.8]} 20.
Rad1 {[%clk 0:07:54.8]} 20... a5 {[%clk 0:07:24.6]} 21. Ne2 {[%clk 0:07:14.8]}
21... Bh3 {[%clk 0:06:42]} 22. Bh1 {[%clk 0:06:30.1]} 22... axb4 {[%clk
0:06:10.8]} 23. Qxb4 {[%clk 0:06:24.7]} 23... Ng5 {[%clk 0:06:10.2]} 24. Nf4
{[%clk 0:04:26]} 24... Bg4 {[%clk 0:05:59.7]} 25. Rd3 {[%clk 0:04:22.1]} 25...
Bf5 {[%clk 0:05:49.7]} 26. Rdd1 {[%clk 0:04:02.7]} 26... Qe7 {[%clk 0:05:25.5]}
27. Bd4 {[%clk 0:03:51.1]} 27... Ne4 {[%clk 0:04:51.6]} 28. Rc1 {[%clk
0:03:39.2]} 28... Bb8 {[%clk 0:03:01.3]} 29. Bxe4 {[%clk 0:01:54.3]} 29... Bxe4
{[%clk 0:02:53.5]} 30. Bc3 {[%clk 0:01:40.7]} 30... Ba7 {[%clk 0:02:24]} 31. Bd4
{[%clk 0:01:38.4]} 31... Qd7 {[%clk 0:02:17.1]} 32. Re3 {[%clk 0:01:34.9]} 32...
Bb8 {[%clk 0:01:52.7]} 33. f3 {[%clk 0:01:33.2]} 33... Bf5 {[%clk 0:01:52.4]}
34. Bc3 {[%clk 0:01:14.1]} 34... Ra7 {[%clk 0:01:48.1]} 35. Qd4 {[%clk
0:01:10.9]} 35... Be6 {[%clk 0:01:43.5]} 36. Nh5 {[%clk 0:00:42.3]} 36... Qe7
{[%clk 0:01:32.3]} 37. g4 {[%clk 0:00:31.9]} 37... Qg5 {[%clk 0:01:19.7]} 38. h3
{[%clk 0:00:31.3]} 38... Rxa4 {[%clk 0:01:15.2]} 39. Qd2 {[%clk 0:00:32.1]}
39... d4 {[%clk 0:01:00.7]} 40. Bxd4 {[%clk 0:00:27.9]} 40... Rd8 {[%clk
0:01:00.8]} 41. f4 {[%clk 0:00:27.3]} 41... Qh4 {[%clk 0:00:56.8]} 42. Rd3
{[%clk 0:00:25.1]} 42... Ra2 {[%clk 0:00:40.3]} 43. Rc2 {[%clk 0:00:15]} 43...
Rxc2 {[%clk 0:00:37.7]} 44. Qxc2 {[%clk 0:00:16.9]} 44... Bf5 {[%clk 0:00:36.8]}
45. gxf5 {[%clk 0:00:16.8]} 45... Qxh5 {[%clk 0:00:37.1]} 46. f6 {[%clk
0:00:17.2]} 46... g6 {[%clk 0:00:36.1]} 47. Qd2 {[%clk 0:00:17.2]} 47... Qf5
{[%clk 0:00:33.7]} 48. Kh2 {[%clk 0:00:16.7]} 48... Bc7 {[%clk 0:00:32.9]} 49.
Qe3 {[%clk 0:00:17.9]} 49... Rd5 {[%clk 0:00:31.9]} 50. Rd2 {[%clk 0:00:17.8]}
50... Qd7 {[%clk 0:00:31.8]} 51. Bc3 {[%clk 0:00:18.7]} 51... Rxd2+ {[%clk
0:00:31.5]} 52. Qxd2 {[%clk 0:00:20.6]} 52... Qxd2+ {[%clk 0:00:28.5]} 53. Bxd2
{[%clk 0:00:22.5]} 53... b6 {[%clk 0:00:27.1]} 54. cxb6 {[%clk 0:00:21.6]} 54...
Bxb6 {[%clk 0:00:28]} 55. Kg2 {[%clk 0:00:23.5]} 55... Kf8 {[%clk 0:00:26.9]}
56. Kf3 {[%clk 0:00:25]} 56... Ke8 {[%clk 0:00:27.4]} 57. Ke4 {[%clk 0:00:25.9]}
57... Kd7 {[%clk 0:00:28.2]} 58. f5 {[%clk 0:00:27]} 58... gxf5+ {[%clk
0:00:26.7]} 59. Kxf5 {[%clk 0:00:28.9]} 59... h5 {[%clk 0:00:27.6]} 60. Bb4
{[%clk 0:00:29.5]} 60... c5 {[%clk 0:00:27.4]} 61. Bc3 {[%clk 0:00:29.7]} 61...
c4 {[%clk 0:00:28]} 62. e6+ {[%clk 0:00:27.5]} 62... fxe6+ {[%clk 0:00:28.3]}
63. Kg6 {[%clk 0:00:29]} 63... Bc5 {[%clk 0:00:27.5]} 64. f7 {[%clk 0:00:27]}
64... Bf8 {[%clk 0:00:27.7]} 65. Kxh5 {[%clk 0:00:26.9]} 65... Kc6 {[%clk
0:00:23.9]} 66. Kg6 {[%clk 0:00:27.6]} 66... Kd7 {[%clk 0:00:24.7]} 67. h4
{[%clk 0:00:28.4]} 67... Kc6 {[%clk 0:00:21.1]} 68. h5 {[%clk 0:00:29.3]} 68...
Kd5 {[%clk 0:00:21.8]} 69. h6 {[%clk 0:00:30.8]} 69... e5 {[%clk 0:00:22.9]} 70.
h7 {[%clk 0:00:31.7]} 70... e4 {[%clk 0:00:24.5]} 71. h8=Q {[%clk 0:00:33.1]}
1-0

[Event "GrandPrix_29.05"]
[Site "Chess.com"]
[Date "2020.05.29"]
[Round "2"]
[White "guylevin1"]
[Black "PresidenteMNE"]
[Result "0-1"]
[WhiteElo "2113"]
[BlackElo "2423"]
[TimeControl "600+2"]
[EndTime "9:58:52 PDT"]
[Termination "PresidenteMNE won by resignation"]

1. c4 {[%clk 0:10:01.9]} 1... e6 {[%clk 0:09:55.9]} 2. g3 {[%clk 0:10:02.1]}
2... f5 {[%clk 0:09:38.7]} 3. Bg2 {[%clk 0:09:59.4]} 3... Nf6 {[%clk 0:09:40]}
4. d4 {[%clk 0:09:59.7]} 4... Bb4+ {[%clk 0:09:35.8]} 5. Bd2 {[%clk 0:09:59.9]}
5... Be7 {[%clk 0:09:32.5]} 6. Nc3 {[%clk 0:09:59.4]} 6... O-O {[%clk
0:09:33.2]} 7. Nf3 {[%clk 0:09:59.3]} 7... d6 {[%clk 0:09:34.4]} 8. O-O {[%clk
0:09:59.6]} 8... Qe8 {[%clk 0:09:34.1]} 9. Qc2 {[%clk 0:09:46.3]} 9... Qh5
{[%clk 0:09:29]} 10. e4 {[%clk 0:09:39.2]} 10... fxe4 {[%clk 0:09:07.8]} 11.
Nxe4 {[%clk 0:09:41.1]} 11... Nxe4 {[%clk 0:09:03]} 12. Qxe4 {[%clk 0:09:43]}
12... Nc6 {[%clk 0:09:04]} 13. d5 {[%clk 0:09:04.3]} 13... exd5 {[%clk
0:08:09.3]} 14. cxd5 {[%clk 0:09:03.5]} 14... Ne5 {[%clk 0:07:05.8]} 15. Nxe5
{[%clk 0:09:00.6]} 15... dxe5 {[%clk 0:07:07.7]} 16. Bc3 {[%clk 0:08:54.7]}
16... Bd6 {[%clk 0:07:01.8]} 17. Rae1 {[%clk 0:08:34.1]} 17... Bf5 {[%clk
0:06:55.5]} 18. Qe3 {[%clk 0:08:33.4]} 18... Rae8 {[%clk 0:06:50.1]} 19. Qd2
{[%clk 0:06:42.3]} 19... b6 {[%clk 0:06:42.1]} 20. Re3 {[%clk 0:06:27.7]} 20...
Rf6 {[%clk 0:06:36.7]} 21. Rfe1 {[%clk 0:06:02.7]} 21... Bg4 {[%clk 0:05:54.4]}
22. Bb4 {[%clk 0:03:22.3]} 22... Ref8 {[%clk 0:05:47.6]} 23. Bxd6 {[%clk
0:03:03.2]} 23... cxd6 {[%clk 0:05:49.5]} 24. Rf1 {[%clk 0:03:03.6]} 24... g5
{[%clk 0:05:37]} 25. Be4 {[%clk 0:02:22]} 25... Bh3 {[%clk 0:05:34]} 26. Rc1
{[%clk 0:02:17.3]} 26... Bg4 {[%clk 0:05:02.9]} 27. Rf1 {[%clk 0:02:08.9]} 27...
Rh6 {[%clk 0:04:51.4]} 28. f3 {[%clk 0:02:07.3]} 28... Bh3 {[%clk 0:04:18.6]}
29. Rf2 {[%clk 0:01:55.6]} 29... g4 {[%clk 0:04:16.8]} 30. fxg4 {[%clk
0:01:30.6]} 30... Bxg4 {[%clk 0:04:16.6]} 31. Rxf8+ {[%clk 0:01:06.5]} 31...
Kxf8 {[%clk 0:04:18.5]} 32. Qf2+ {[%clk 0:01:00.3]} 32... Kg7 {[%clk 0:03:47.2]}
33. Rc3 {[%clk 0:00:44.4]} 33... Rf6 {[%clk 0:03:46.6]} 34. Rc7+ {[%clk
0:00:27.2]} 34... Rf7 {[%clk 0:03:47.3]} 35. Qc2 {[%clk 0:00:13.8]} 35... Bd7
{[%clk 0:03:20.8]} 36. Qd2 {[%clk 0:00:05.6]} 36... h6 {[%clk 0:02:57.3]} 37.
Rc1 {[%clk 0:00:03.4]} 37... Qg4 {[%clk 0:02:02.8]} 38. Qe3 {[%clk 0:00:04.1]}
38... Bb5 {[%clk 0:01:57.9]} 39. Bg2 {[%clk 0:00:04.5]} 39... Qd4 {[%clk
0:01:23.7]} 40. Qxd4 {[%clk 0:00:04.8]} 40... exd4 {[%clk 0:01:25.6]} 41. Rd1
{[%clk 0:00:05.7]} 41... d3 {[%clk 0:01:20.7]} 42. Be4 {[%clk 0:00:06.2]} 42...
Bc4 {[%clk 0:00:45.9]} 43. Bxd3 {[%clk 0:00:06]} 43... Bxd5 {[%clk 0:00:43.9]}
44. Bg6 {[%clk 0:00:06.3]} 44... Kxg6 {[%clk 0:00:37.2]} 45. Rxd5 {[%clk
0:00:07.9]} 45... Rf6 {[%clk 0:00:33.5]} 46. g4 {[%clk 0:00:09.2]} 46... Kf7
{[%clk 0:00:34.5]} 47. Kg2 {[%clk 0:00:09.6]} 47... Ke6 {[%clk 0:00:35.2]} 48.
Rd2 {[%clk 0:00:07]} 48... d5 {[%clk 0:00:35.9]} 49. h4 {[%clk 0:00:07.8]} 49...
Ke5 {[%clk 0:00:37.2]} 50. Kg3 {[%clk 0:00:09.1]} 50... Ke4 {[%clk 0:00:34.7]}
51. g5 {[%clk 0:00:10.4]} 51... hxg5 {[%clk 0:00:33.6]} 52. hxg5 {[%clk
0:00:12.3]} 52... Rf3+ {[%clk 0:00:30.5]} 53. Kg4 {[%clk 0:00:12.7]} 53... Rf4+
{[%clk 0:00:31.8]} 54. Kh5 {[%clk 0:00:13.9]} 54... Rf1 {[%clk 0:00:18.4]} 55.
g6 {[%clk 0:00:13]} 55... Rg1 {[%clk 0:00:17.7]} 56. Kh6 {[%clk 0:00:11.7]}
56... d4 {[%clk 0:00:19]} 57. g7 {[%clk 0:00:12.8]} 57... Ke3 {[%clk 0:00:19.9]}
58. Rh2 {[%clk 0:00:11.1]} 58... d3 {[%clk 0:00:20.3]} 59. Rh5 {[%clk
0:00:06.9]} 59... d2 {[%clk 0:00:18.8]} 60. Re5+ {[%clk 0:00:07.9]} 60... Kd4
{[%clk 0:00:18.5]} 61. Re8 {[%clk 0:00:08.8]} 61... Kd3 {[%clk 0:00:13.1]} 62.
Rd8+ {[%clk 0:00:08.2]} 62... Kc2 {[%clk 0:00:13.9]} 63. b4 {[%clk 0:00:04.4]}
63... d1=Q {[%clk 0:00:13]} 64. Rxd1 {[%clk 0:00:06]} 64... Kxd1 {[%clk
0:00:14.2]} 65. Kh7 {[%clk 0:00:07.9]} 65... Kc2 {[%clk 0:00:14.8]} 66. g8=Q
{[%clk 0:00:08.7]} 66... Rxg8 {[%clk 0:00:15.3]} 67. Kxg8 {[%clk 0:00:10.6]}
67... Kc3 {[%clk 0:00:16.1]} 68. Kf7 {[%clk 0:00:12.3]} 68... Kxb4 {[%clk
0:00:16.8]} 69. Ke6 {[%clk 0:00:13.9]} 69... Ka3 {[%clk 0:00:17.2]} 0-1